fUST/lending_fUST_20260430
["ID","MTS","AMOUNT","RATE_DAILY","PERIOD"]
[421394942,1777557045000,-500.0,0.00019178,2]
[421394952,1777557045000,-500.0,0.00019178,2]
[421394941,1777557045000,-8291.66,0.00019178,2]
[421394953,1777557045000,-500.0,0.00019178,2]
[421394944,1777557045000,-500.0,0.00019178,2]
[421394947,1777557045000,-500.0,0.00019178,2]
[421394926,1777557045000,-727.14,0.00019178,2]
[421394950,1777557045000,-500.0,0.00019178,2]
[421394933,1777557045000,-500.0,0.00019178,2]
[421394927,1777557045000,-3259.51,0.00019178,2]
[421394919,1777557045000,-500.0,0.00019178,2]
[421394925,1777557045000,-624.74,0.00019178,2]
[421394948,1777557045000,-591.46,0.00019178,2]
[421394904,1777557045000,-500.0,0.00019178,2]
[421394905,1777557045000,-160.16457099,0.00019178,2]
[421394907,1777557045000,-3492.1,0.00019178,2]
[421394906,1777557045000,-500.0,0.00019178,2]
[421394909,1777557045000,-662.04,0.00019178,2]
[421394920,1777557045000,-1341.36,0.00019178,2]
[421394908,1777557045000,-500.0,0.00019178,2]
[421394910,1777557045000,-500.0,0.00019178,2]
[421394923,1777557045000,-500.0,0.00019178,2]
[421394911,1777557045000,-500.0,0.00019178,2]
[421394914,1777557045000,-500.0,0.00019178,2]
[421394915,1777557045000,-1109.64,0.00019178,2]
[421394918,1777557045000,-8333.33,0.00019178,2]
[421394917,1777557045000,-2747.17,0.00019178,2]
[421394912,1777557045000,-500.0,0.00019178,2]
[421394921,1777557045000,-3662.66,0.00019178,2]
[421394922,1777557045000,-500.0,0.00019178,2]
[421394928,1777557045000,-837.82,0.00019178,2]
[421394924,1777557045000,-500.0,0.00019178,2]
[421394913,1777557045000,-582.5,0.00019178,2]
[421394945,1777557045000,-1398.08,0.00019178,2]
[421394916,1777557045000,-1145.02,0.00019178,2]
[421394949,1777557045000,-500.0,0.00019178,2]
[421394976,1777557045000,-1814.51,0.00019178,2]
[421394979,1777557045000,-500.0,0.00019178,2]
[421394983,1777557045000,-9030.37,0.00019178,2]
[421394981,1777557045000,-500.32696774,0.00019178,2]
[421394984,1777557045000,-500.0,0.00019178,2]
[421394982,1777557045000,-500.0,0.00019178,2]
[421394988,1777557045000,-500.0,0.00019178,2]
[421394989,1777557045000,-500.0,0.00019178,2]
[421394985,1777557045000,-500.0,0.00019178,2]
[421394987,1777557045000,-500.0,0.00019178,2]
[421394990,1777557045000,-500.0,0.00019178,2]
[421394980,1777557045000,-500.0,0.00019178,2]
[421394991,1777557045000,-512.46215187,0.00019178,2]
[421394992,1777557045000,-1579.91,0.00019178,2]
[421394994,1777557045000,-500.0,0.00019178,2]
[421394993,1777557045000,-640.67,0.00019178,2]
[421394995,1777557045000,-500.0,0.00019178,2]
[421394998,1777557045000,-11198.66499304,0.00019178,2]
[421394996,1777557045000,-500.0,0.00019178,2]
[421394997,1777557045000,-500.0,0.00019178,2]
[421394951,1777557045000,-534.96,0.00019178,2]
[421394975,1777557045000,-500.0,0.00019178,2]
[421394971,1777557045000,-1825.93,0.00019178,2]
[421394986,1777557045000,-500.0,0.00019178,2]
[421394966,1777557045000,-500.0,0.00019178,2]
[421394946,1777557045000,-500.0,0.00019178,2]
[421394973,1777557045000,-500.0,0.00019178,2]
[421394955,1777557045000,-500.0,0.00019178,2]
[421394956,1777557045000,-2141.82,0.00019178,2]
[421394957,1777557045000,-210.80783359,0.00019178,2]
[421394965,1777557045000,-1665.03,0.00019178,2]
[421394964,1777557045000,-501.66,0.00019178,2]
[421394954,1777557045000,-500.0,0.00019178,2]
[421394963,1777557045000,-567.88,0.00019178,2]
[421394959,1777557045000,-1042.68,0.00019178,2]
[421394961,1777557045000,-556.96668455,0.00019178,2]
[421394958,1777557045000,-812.68,0.00019178,2]
[421394962,1777557045000,-1325.65,0.00019178,2]
[421394960,1777557045000,-500.0,0.00019178,2]
[421394967,1777557045000,-500.0,0.00019178,2]
[421394974,1777557045000,-685.59,0.00019178,2]
[421394978,1777557045000,-939.7,0.00019178,2]
[421394977,1777557045000,-500.0,0.00019178,2]
[421394972,1777557045000,-500.0,0.00019178,2]
[421394970,1777557045000,-500.0,0.00019178,2]
[421394968,1777557045000,-628.36,0.00019178,2]
[421394969,1777557045000,-500.0,0.00019178,2]
[421395044,1777557046000,-500.0,0.00019178,2]
[421395042,1777557046000,-500.0,0.00019178,2]
[421395031,1777557046000,-6377.57,0.00019178,2]
[421395033,1777557046000,-1171.73,0.00019178,2]
[421395029,1777557046000,-500.0,0.00019178,2]
[421395025,1777557046000,-724.44,0.00019178,2]
[421395035,1777557046000,-500.0,0.00019178,2]
[421395028,1777557046000,-500.0,0.00019178,2]
[421395034,1777557046000,-500.0,0.00019178,2]
[421395041,1777557046000,-500.0,0.00019178,2]
[421395030,1777557046000,-8298.75,0.00019178,2]
[421395046,1777557046000,-506.95713469,0.00019178,2]
[421395054,1777557046000,-500.0,0.00019178,2]
[421395045,1777557046000,-500.0,0.00019178,2]
[421395049,1777557046000,-500.0,0.00019178,2]
[421395056,1777557046000,-500.0,0.00019178,2]
[421395048,1777557046000,-2042.84,0.00019178,2]
[421395053,1777557046000,-500.0,0.00019178,2]
[421395047,1777557046000,-500.0,0.00019178,2]
[421395052,1777557046000,-500.0,0.00019178,2]
[421395055,1777557046000,-500.0,0.00019178,2]
[421395057,1777557046000,-7957.54,0.00019178,2]
[421395059,1777557046000,-882.43,0.00019178,2]
[421395027,1777557046000,-490.23468833,0.00019178,2]
[421395051,1777557046000,-1151.78,0.00019178,2]
[421395037,1777557046000,-500.0,0.00019178,2]
[421395004,1777557046000,-500.0,0.00019178,2]
[421395038,1777557046000,-848.27,0.00019178,2]
[421395002,1777557046000,-12817.27500696,0.00019178,2]
[421395003,1777557046000,-500.0,0.00019178,2]
[421395007,1777557046000,-500.0,0.00019178,2]
[421395006,1777557046000,-2222.53,0.00019178,2]
[421395058,1777557046000,-1277.41,0.00019178,2]
[421395008,1777557046000,-500.0,0.00019178,2]
[421395009,1777557046000,-500.0,0.00019178,2]
[421395010,1777557046000,-834.97,0.00019178,2]
[421395005,1777557046000,-1983.7,0.00019178,2]
[421395011,1777557046000,-500.0,0.00019178,2]
[421395013,1777557046000,-10407.42,0.00019178,2]
[421395016,1777557046000,-5320.6,0.00019178,2]
[421395015,1777557046000,-500.0,0.00019178,2]
[421395014,1777557046000,-363.62951413,0.00019178,2]
[421395012,1777557046000,-500.0,0.00019178,2]
[421395017,1777557046000,-500.0,0.00019178,2]
[421395022,1777557046000,-500.0,0.00019178,2]
[421395023,1777557046000,-500.0,0.00019178,2]
[421395018,1777557046000,-645.44,0.00019178,2]
[421395020,1777557046000,-500.0,0.00019178,2]
[421395024,1777557046000,-500.0,0.00019178,2]
[421395021,1777557046000,-500.0,0.00019178,2]
[421395019,1777557046000,-500.0,0.00019178,2]
[421395026,1777557046000,-20479.4,0.00019178,2]
[421395036,1777557046000,-7944.62,0.00019178,2]
[421395039,1777557046000,-500.0,0.00019178,2]
[421395065,1777557046000,-973.27,0.00019178,2]
[421395082,1777557046000,-2414.17,0.00019178,2]
[421395070,1777557046000,-500.0,0.00019178,2]
[421395099,1777557046000,-500.0,0.00019178,2]
[421395097,1777557046000,-4018.51,0.00019178,2]
[421395095,1777557046000,-1214.17,0.00019178,2]
[421395092,1777557046000,-500.0,0.00019178,2]
[421395100,1777557046000,-500.0,0.00019178,2]
[421395102,1777557046000,-1188.46,0.00019178,2]
[421395101,1777557046000,-3198.31,0.00019178,2]
[421395103,1777557046000,-500.0,0.00019178,2]
[421395104,1777557046000,-890.83,0.00019178,2]
[421395067,1777557046000,-500.0,0.00019178,2]
[421395110,1777557046000,-500.0,0.00019178,2]
[421395096,1777557046000,-187.04656872,0.00019178,2]
[421395105,1777557046000,-500.0,0.00019178,2]
[421395109,1777557046000,-500.0,0.00019178,2]
[421395111,1777557046000,-6385.48,0.00019178,2]
[421395106,1777557046000,-500.0,0.00019178,2]
[421395108,1777557046000,-500.0,0.00019178,2]
[421395113,1777557046000,-1210.15,0.00019178,2]
[421395115,1777557046000,-560.07,0.00019178,2]
[421395116,1777557046000,-500.0,0.00019178,2]
[421395114,1777557046000,-500.0,0.00019178,2]
[421395117,1777557046000,-500.0,0.00019178,2]
[421395119,1777557046000,-500.0,0.00019178,2]
[421395118,1777557046000,-760.86,0.00019178,2]
[421395112,1777557046000,-852.56,0.00019178,2]
[421395098,1777557046000,-500.0,0.00019178,2]
[421395107,1777557046000,-530.08,0.00019178,2]
[421395091,1777557046000,-500.0,0.00019178,2]
[421395087,1777557046000,-819.41,0.00019178,2]
[421395069,1777557046000,-554.95,0.00019178,2]
[421395064,1777557046000,-500.0,0.00019178,2]
[421395060,1777557046000,-500.0,0.00019178,2]
[421395062,1777557046000,-500.0,0.00019178,2]
[421395061,1777557046000,-500.0,0.00019178,2]
[421395071,1777557046000,-3041.1,0.00019178,2]
[421395072,1777557046000,-500.0,0.00019178,2]
[421395083,1777557046000,-536.07,0.00019178,2]
[421395085,1777557046000,-12429.7581305,0.00019178,2]
[421395084,1777557046000,-2093.3018695,0.00019178,2]
[421395078,1777557046000,-1309.32,0.00019178,2]
[421395063,1777557046000,-2615.32,0.00019178,2]
[421395080,1777557046000,-500.0,0.00019178,2]
[421395081,1777557046000,-500.0,0.00019178,2]
[421395094,1777557046000,-500.0,0.00019178,2]
[421395089,1777557046000,-500.0,0.00019178,2]
[421395090,1777557046000,-4282.29,0.00019178,2]
[421395088,1777557046000,-500.0,0.00019178,2]
[421395093,1777557046000,-4166.66,0.00019178,2]
[421395076,1777557046000,-500.0,0.00019178,2]
[421395079,1777557046000,-500.0,0.00019178,2]
[421395074,1777557046000,-500.0,0.00019178,2]
[421395077,1777557046000,-500.0,0.00019178,2]
[421395073,1777557046000,-827.38,0.00019178,2]
[421395086,1777557046000,-500.0,0.00019178,2]
[421395134,1777557047000,-527.76312898,0.00019178,2]
[421395135,1777557047000,-561.10708834,0.00019178,2]
[421395136,1777557047000,-500.0,0.00019178,2]
[421395138,1777557047000,-500.0,0.00019178,2]
[421395141,1777557047000,-500.0,0.00019178,2]
[421395139,1777557047000,-500.0,0.00019178,2]
[421395137,1777557047000,-500.0,0.00019178,2]
[421395144,1777557047000,-500.0,0.00019178,2]
[421395142,1777557047000,-1660.2357902,0.00019178,2]
[421395140,1777557047000,-500.0,0.00019178,2]
[421395132,1777557047000,-500.0,0.00019178,2]
[421395124,1777557047000,-714.15,0.00019178,2]
[421395133,1777557047000,-500.0,0.00019178,2]
[421395129,1777557047000,-500.0,0.00019178,2]
[421395130,1777557047000,-500.0,0.00019178,2]
[421395128,1777557047000,-500.0,0.00019178,2]
[421395127,1777557047000,-6580.89399248,0.00019178,2]
[421395123,1777557047000,-15021.14,0.00019178,2]
[421395121,1777557047000,-537.71,0.00019178,2]
[421395120,1777557047000,-500.0,0.00019178,2]
[421395122,1777557047000,-500.0,0.00019178,2]
[421395126,1777557047000,-1544.10600752,0.00019178,2]
[421395125,1777557047000,-1674.33,0.00019178,2]
[421395131,1777557047000,-500.0,0.00019178,2]
[421395143,1777557047000,-4988.7542098,0.00019178,2]
[421395154,1777557047000,-633.25316428,0.00019178,2]
[421395145,1777557047000,-500.0,0.00019178,2]
[421395146,1777557047000,-500.0,0.00019178,2]
[421395168,1777557047000,-74.17186799,0.00019178,2]
[421395171,1777557047000,-475.42988111,0.00019178,2]
[421395170,1777557047000,-500.0,0.00019178,2]
[421395169,1777557047000,-500.0,0.00019178,2]
[421395166,1777557047000,-1671.04,0.00019178,2]
[421395156,1777557047000,-500.0,0.00019178,2]
[421395164,1777557047000,-754.88,0.00019178,2]
[421395165,1777557047000,-500.0,0.00019178,2]
[421395161,1777557047000,-500.0,0.00019178,2]
[421395162,1777557047000,-500.0,0.00019178,2]
[421395160,1777557047000,-291.00957684,0.00019178,2]
[421395167,1777557047000,-425.82813201,0.00019178,2]
[421395159,1777557047000,-399.96106945,0.00019178,2]
[421395163,1777557047000,-500.0,0.00019178,2]
[421395147,1777557047000,-945.96,0.00019178,2]
[421395149,1777557047000,-500.0,0.00019178,2]
[421395153,1777557047000,-500.0,0.00019178,2]
[421395151,1777557047000,-500.0,0.00019178,2]
[421395148,1777557047000,-500.0,0.00019178,2]
[421395152,1777557047000,-500.0,0.00019178,2]
[421395155,1777557047000,-500.0,0.00019178,2]
[421395158,1777557047000,-625.45935371,0.00019178,2]
[421395157,1777557047000,-740.51,0.00019178,2]
[421395150,1777557047000,-500.0,0.00019178,2]
[421395184,1777557048000,-500.0,0.00019178,2]
[421395178,1777557048000,-1852.69503136,0.00019178,2]
[421395181,1777557048000,-500.0,0.00019178,2]
[421395179,1777557048000,-7069.62301038,0.00019178,2]
[421395182,1777557048000,-720.32,0.00019178,2]
[421395180,1777557048000,-4784.67,0.00019178,2]
[421395173,1777557048000,-24.57011889,0.00019178,2]
[421395175,1777557048000,-500.0,0.00019178,2]
[421395172,1777557048000,-497.055,0.00017034,2]
[421395176,1777557048000,-13037.71845826,0.00019178,2]
[421395174,1777557048000,-500.0,0.00019178,2]
[421395187,1777557048000,-2099.73,0.00019178,2]
[421395177,1777557048000,-505.9535,0.00019178,2]
[421395185,1777557048000,-500.0,0.00019178,2]
[421395186,1777557048000,-613.29253365,0.00019178,2]
[421395200,1777557048000,-500.0,0.00019178,2]
[421395183,1777557048000,-500.0,0.00019178,2]
[421395202,1777557048000,-11631.69271933,0.00019178,2]
[421395201,1777557048000,-500.0,0.00019178,2]
[421395194,1777557048000,-500.0,0.00019178,2]
[421395198,1777557048000,-516.99357489,0.00019178,2]
[421395195,1777557048000,-500.0,0.00019178,2]
[421395193,1777557048000,-500.0,0.00019178,2]
[421395196,1777557048000,-13.89080894,0.00019178,2]
[421395192,1777557048000,-688.5,0.00019178,2]
[421395199,1777557048000,-1149.4,0.00019178,2]
[421395191,1777557048000,-500.0,0.00019178,2]
[421395190,1777557048000,-500.0,0.00019178,2]
[421395189,1777557048000,-500.0,0.00019178,2]
[421395188,1777557048000,-500.0,0.00019178,2]
[421395197,1777557048000,-540.73919106,0.00019178,2]
[421395203,1777557049000,-2150.00499999,0.00019178,2]
[421395204,1777557049000,-1184.11823551,0.00019178,2]
[421395205,1777557049000,-388.62466209,0.00019178,2]
[421395219,1777558007000,10000.0,0.000219,120]
[421395318,1777558232000,-422.56761517,9.203e-05,2]
[421395313,1777558232000,-500.0,9.203e-05,2]
[421395314,1777558232000,-500.0,9.203e-05,2]
[421395316,1777558232000,-382.36718564,9.203e-05,2]
[421395329,1777558232000,-500.0,9.203e-05,2]
[421395343,1777558232000,-607.31488829,9.203e-05,2]
[421395341,1777558232000,-500.0,9.203e-05,2]
[421395299,1777558232000,-300.0,8.367e-05,2]
[421395340,1777558232000,-500.0,9.203e-05,2]
[421395305,1777558232000,-300.0,8.367e-05,2]
[421395290,1777558232000,-571.88379289,8.117e-05,10]
[421395301,1777558232000,-300.0,8.367e-05,2]
[421395297,1777558232000,-1200.0,8.367e-05,2]
[421395303,1777558232000,-300.0,8.367e-05,2]
[421395308,1777558232000,-463.0,9.203e-05,2]
[421395306,1777558232000,-50000.0,9.019e-05,2]
[421395293,1777558232000,-536.0,8.242e-05,2]
[421395295,1777558232000,-1200.0,8.366e-05,2]
[421395292,1777558232000,-150.0,8.242e-05,2]
[421395288,1777558232000,-5000.0,8.036e-05,10]
[421395311,1777558232000,-500.0,9.203e-05,2]
[421395331,1777558232000,-500.0,9.203e-05,2]
[421395336,1777558232000,-500.0,9.203e-05,2]
[421395345,1777558232000,-500.0,9.203e-05,2]
[421395337,1777558232000,-500.0,9.203e-05,2]
[421395381,1777558232000,-500.0,9.203e-05,2]
[421395383,1777558232000,-500.0,9.203e-05,2]
[421395377,1777558232000,-500.0,9.203e-05,2]
[421395375,1777558232000,-500.0,9.203e-05,2]
[421395362,1777558232000,-500.0,9.203e-05,2]
[421395374,1777558232000,-500.0,9.203e-05,2]
[421395360,1777558232000,-500.0,9.203e-05,2]
[421395356,1777558232000,-500.0,9.203e-05,2]
[421395363,1777558232000,-500.0,9.203e-05,2]
[421395378,1777558232000,-500.0,9.203e-05,2]
[421395357,1777558232000,-500.0,9.203e-05,2]
[421395367,1777558232000,-500.0,9.203e-05,2]
[421395334,1777558232000,-500.0,9.203e-05,2]
[421395349,1777558232000,-500.0,9.203e-05,2]
[421395348,1777558232000,-500.0,9.203e-05,2]
[421395379,1777558232000,-500.0,9.203e-05,2]
[421395353,1777558232000,-500.0,9.203e-05,2]
[421395366,1777558232000,-500.0,9.203e-05,2]
[421395370,1777558232000,-500.0,9.203e-05,2]
[421395372,1777558232000,-500.0,9.203e-05,2]
[421395351,1777558232000,-500.0,9.203e-05,2]
[421395402,1777558233000,-151.0,0.00010755,2]
[421395395,1777558233000,-500.0,9.203e-05,2]
[421395401,1777558233000,-286.53190538,0.00010242,2]
[421395398,1777558233000,-300.0,9.204e-05,2]
[421395403,1777558233000,-151.0,0.00011667,2]
[421395397,1777558233000,-500.0,9.203e-05,2]
[421395406,1777558233000,-2432.24235,0.000129,2]
[421395405,1777558233000,-500.0,0.00012605,2]
[421395391,1777558233000,-500.0,9.203e-05,2]
[421395394,1777558233000,-500.0,9.203e-05,2]
[421395393,1777558233000,-271.9168493,9.203e-05,2]
[421395392,1777558233000,-500.0,9.203e-05,2]
[421395390,1777558233000,-500.0,9.203e-05,2]
[421395387,1777558233000,-500.0,9.203e-05,2]
[421395385,1777558233000,-500.0,9.203e-05,2]
[421395388,1777558233000,-500.0,9.203e-05,2]
[421395404,1777558233000,-151.0,0.0001225,2]
[421395396,1777558233000,-500.0,9.203e-05,2]
[421395399,1777558233000,-300.0,9.204e-05,2]
[421395411,1777558233000,-500.0,0.00013698,2]
[421395408,1777558233000,-2432.24234996,0.000129,2]
[421395425,1777558233000,-40951.94801991,0.00017277,2]
[421395400,1777558233000,-250.32371652,0.00010225,2]
[421395419,1777558233000,-2432.24234996,0.00016042,2]
[421395423,1777558233000,-2212.0,0.00017162,2]
[421395422,1777558233000,-646.0,0.00017162,2]
[421395420,1777558233000,-500.0,0.00016249,2]
[421395418,1777558233000,-500.0,0.00015476,2]
[421395421,1777558233000,-500.0,0.00017062,2]
[421395424,1777558233000,-1410.0,0.00017162,2]
[421395416,1777558233000,-2432.24234996,0.00014307,2]
[421395417,1777558233000,-500.0,0.00014702,2]
[421395413,1777558233000,-1000.0,0.00013699,2]
[421395414,1777558233000,-1000.0,0.00013699,2]
[421395412,1777558233000,-500.0,0.00013698,2]
[421395407,1777558233000,-2432.24234996,0.000129,2]
[421395410,1777558233000,-500.0,0.00013698,2]
[421395409,1777558233000,-500.0,0.00013268,2]
[421395415,1777558233000,-500.0,0.00013967,2]
[421395458,1777558241000,-88.05582151,0.00017277,2]
[421395457,1777558241000,-304.0,0.00017104,10]
[421395472,1777558244000,-1990.70963771,0.00017277,2]
[421395474,1777558247000,-455.0,0.00017277,2]
[421395475,1777558247000,-5220.40955508,0.00017277,2]
[421395479,1777558880000,18133.929,0.00021918,120]
[421395483,1777559159000,1000.0,0.0002,120]
[421395508,1777559432000,-1848.4877418,0.00012897,2]
[421395509,1777559432000,-157.4146945,0.00012897,2]
[421395510,1777559433000,-547.50459407,0.00012897,2]
[421395526,1777559441000,-589.90996546,0.00013699,2]
[421395541,1777559444000,-410.09003454,0.00013699,2]
[421395542,1777559444000,-605.0,0.00013699,2]
[421395548,1777559444000,-500.0,0.00016249,2]
[421395543,1777559444000,-210.00099729,0.00014206,2]
[421395545,1777559444000,-470.36562552,0.00014702,2]
[421395546,1777559444000,-500.0,0.00015476,2]
[421395547,1777559444000,-1848.4877418,0.00015625,2]
[421395544,1777559444000,-1000.0,0.00014689,2]
[421395549,1777559444000,-1112.62878613,0.00016962,2]
[421395588,1777559447000,-297.18637826,0.0001745,2]
[421395569,1777559447000,-603.00234242,0.00017449,2]
[421395566,1777559447000,-500.0,0.00017449,2]
[421395567,1777559447000,-500.0,0.00017449,2]
[421395565,1777559447000,-500.0,0.00017449,2]
[421395568,1777559447000,-500.0,0.00017449,2]
[421395561,1777559447000,-2021.58721064,0.00017435,14]
[421395564,1777559447000,-452.89583362,0.00017449,2]
[421395563,1777559447000,-500.0,0.00017449,2]
[421395562,1777559447000,-500.0,0.00017449,2]
[421395558,1777559447000,-1410.0,0.00017316,2]
[421395560,1777559447000,-2021.58721064,0.00017377,14]
[421395559,1777559447000,-2212.0,0.00017316,2]
[421395556,1777559447000,-21647.84259117,0.00016962,2]
[421395557,1777559447000,-499.99999999,0.00017062,2]
[421395572,1777559447000,-500.0,0.00017449,2]
[421395570,1777559447000,-500.0,0.00017449,2]
[421395571,1777559447000,-500.0,0.00017449,2]
[421395581,1777559447000,-500.0,0.00017449,2]
[421395589,1777559447000,-673.49390521,0.0001745,2]
[421395590,1777559447000,-403.84086184,0.0001745,2]
[421395586,1777559447000,-466.63341793,0.0001745,2]
[421395587,1777559447000,-970.68028347,0.0001745,2]
[421395573,1777559447000,-500.0,0.00017449,2]
[421395583,1777559447000,-500.0,0.00017449,2]
[421395576,1777559447000,-500.0,0.00017449,2]
[421395582,1777559447000,-500.0,0.00017449,2]
[421395585,1777559447000,-970.68028347,0.0001745,2]
[421395580,1777559447000,-500.0,0.00017449,2]
[421395574,1777559447000,-500.0,0.00017449,2]
[421395578,1777559447000,-500.0,0.00017449,2]
[421395575,1777559447000,-500.0,0.00017449,2]
[421395579,1777559447000,-500.0,0.00017449,2]
[421395577,1777559447000,-500.0,0.00017449,2]
[421395584,1777559447000,-636.90777681,0.0001745,2]
[421400879,1777560631000,-162.14,0.00012,2]
[421400859,1777560631000,-1104.64,0.0001199,2]
[421400860,1777560631000,-581.0,0.0001199,2]
[421400862,1777560631000,-197.11425714,0.00011994,2]
[421400874,1777560631000,-209.0,0.00011999,2]
[421400875,1777560631000,-19378.37169967,0.00012,2]
[421400864,1777560631000,-300.0,0.00011998,2]
[421400877,1777560631000,-150.0,0.00012,2]
[421400887,1777560631000,-1000.0,0.00013699,2]
[421400866,1777560631000,-300.0,0.00011998,2]
[421400870,1777560631000,-300.0,0.00011998,2]
[421400890,1777560631000,-500.0,0.00015476,2]
[421400883,1777560631000,-228.33,0.000121,2]
[421400888,1777560631000,-1000.0,0.00014156,2]
[421400881,1777560631000,-2000.0,0.00012,3]
[421400872,1777560631000,-1200.0,0.00011998,2]
[421400868,1777560631000,-300.0,0.00011998,2]
[421400885,1777560631000,-500.0,0.00013698,2]
[421400926,1777560632000,-937.52146635,0.00017148,2]
[421400924,1777560632000,-937.52146635,0.00017148,2]
[421400922,1777560632000,-937.52146635,0.00017148,2]
[421400920,1777560632000,-937.52146635,0.00017148,2]
[421400914,1777560632000,-937.52146635,0.00017148,2]
[421400912,1777560632000,-937.52146635,0.00017148,2]
[421400918,1777560632000,-937.52146635,0.00017148,2]
[421400916,1777560632000,-937.52146635,0.00017148,2]
[421400928,1777560632000,-937.52146635,0.00017148,2]
[421400910,1777560632000,-937.52146635,0.00017148,2]
[421400905,1777560632000,-377.66290146,0.00017146,2]
[421400907,1777560632000,-626.43864334,0.00017148,2]
[421400903,1777560632000,-500.0,0.00017146,2]
[421400901,1777560632000,-500.0,0.00017146,2]
[421400899,1777560632000,-500.0,0.00017146,2]
[421400897,1777560632000,-159.97409204,0.00017049,2]
[421400896,1777560632000,-3521.6431935,0.00016787,2]
[421400894,1777560632000,-151.0,0.00016758,2]
[421400932,1777560632000,-937.52146635,0.00017148,2]
[421400909,1777560632000,-326.64339255,0.00017148,2]
[421400892,1777560632000,-1605.41,0.00016438,5]
[421400930,1777560632000,-937.52146635,0.00017148,2]
[421400937,1777560632000,-937.52146635,0.00017148,2]
[421400934,1777560632000,-937.52146635,0.00017148,2]
[421400955,1777560632000,-160736.59170779,0.00017149,2]
[421400953,1777560632000,-500.0,0.00017148,2]
[421400954,1777560632000,-468.27,0.00017148,2]
[421400950,1777560632000,-984.15507723,0.00017148,2]
[421400951,1777560632000,-984.15507723,0.00017148,2]
[421400942,1777560632000,-960.95950301,0.00017148,2]
[421400948,1777560632000,-960.95950301,0.00017148,2]
[421400940,1777560632000,-960.95950301,0.00017148,2]
[421400952,1777560632000,-500.0,0.00017148,2]
[421400938,1777560632000,-937.52146635,0.00017148,2]
[421400936,1777560632000,-937.52146635,0.00017148,2]
[421400947,1777560632000,-960.95950301,0.00017148,2]
[421400945,1777560632000,-960.95950301,0.00017148,2]
[421400939,1777560632000,-937.52146635,0.00017148,2]
[421400941,1777560632000,-960.95950301,0.00017148,2]
[421400943,1777560632000,-960.95950301,0.00017148,2]
[421400949,1777560632000,-960.95950301,0.00017148,2]
[421400946,1777560632000,-960.95950301,0.00017148,2]
[421400944,1777560632000,-960.95950301,0.00017148,2]
[421401011,1777560638000,-682.24613883,0.00017873,2]
[421401013,1777560638000,-1507.17,0.000179,2]
[421401009,1777560638000,-537.6845,0.00017818,2]
[421401010,1777560638000,-2150.738,0.00017818,2]
[421401017,1777560638000,-407.43,0.000179,2]
[421401018,1777560638000,-2271.79342779,0.00018089,2]
[421401008,1777560638000,-537.6845,0.00017818,2]
[421401016,1777560638000,-2243.33,0.000179,2]
[421401006,1777560638000,-273.01885801,0.00017815,2]
[421401020,1777560638000,-5466.25014003,0.00018101,2]
[421401012,1777560638000,-1507.17,0.000179,2]
[421401029,1777560638000,-585.36072442,0.00018794,2]
[421401026,1777560638000,-597.41500777,0.00018366,2]
[421401031,1777560638000,-151.5,0.00018904,2]
[421401021,1777560638000,-2271.79342779,0.0001812,2]
[421401019,1777560638000,-3421.81031975,0.00018089,2]
[421401022,1777560638000,-3421.81031975,0.0001812,2]
[421401024,1777560638000,-1072.14,0.00018323,2]